bitfinex-derivatives/quotes_BNBF0:USTF0_20250116
["timestamp","ask_amount","ask_price","bid_price","bid_amount"]
[1737022192907,0.28197211,709.29,708.29,0.25927238]
[1737022193106,0.28197211,709.29,708.3,0.25927238]
[1737022193306,0.28197211,709.29,708.31,0.25927238]
[1737022193506,0.28197211,709.29,708.32,0.25927238]
[1737022193709,0.28197211,709.29,708.18,1.05215827]
[1737022193909,1.0539585,710.02,708.18,1.05215827]
[1737022193910,1.0539585,710.02,708.19,0.25923149]
[1737022194104,0.28169014,710.0,708.19,0.25923149]
[1737022195003,0.28169014,710.0,708.2,0.25921829]
[1737022195203,0.28169014,710.0,708.21,0.25921829]
[1737022195405,0.28169014,710.0,708.22,0.25921829]
[1737022195709,0.28169014,710.0,708.23,0.25921975]
[1737022195910,0.28169014,710.0,707.86,0.28254174]
[1737022195911,0.28169014,710.0,708.24,0.25921975]
[1737022196105,0.28169014,710.0,708.17,0.25921975]
[1737022196407,0.28169014,710.0,708.18,0.25922158]
[1737022196611,0.28169014,710.0,708.19,0.25922158]
[1737022196910,0.28169014,710.0,708.2,0.25922158]
[1737022197113,0.28169014,710.0,708.21,0.25922158]
[1737022197407,0.28169014,710.0,708.22,0.25922158]
[1737022197610,0.28169014,710.0,708.23,0.25922158]
[1737022197912,0.28169014,710.0,708.24,0.25922158]
[1737022198112,0.28169014,710.0,707.86,0.28254174]
[1737022198113,0.28169014,710.0,708.25,0.25922158]
[1737022198314,0.28169014,710.0,708.26,0.25922158]
[1737022198613,0.28169014,710.0,708.27,0.25922503]
[1737022198812,0.28169014,710.0,708.12,1.05215827]
[1737022199008,0.28169014,710.0,708.13,0.25922498]
[1737022199213,0.28169014,710.0,708.14,0.25922498]
[1737022199412,0.28169014,710.0,708.15,0.25922498]
[1737022199610,0.28169014,710.0,708.16,0.25922498]
[1737022199814,0.28169014,710.0,708.17,0.25922498]
[1737022200014,0.28169014,710.0,708.18,0.25922498]
[1737022200214,0.28169014,710.0,708.19,0.25922498]
[1737022200520,0.28169014,710.0,708.2,0.25922498]
[1737022200720,0.28169014,710.0,708.21,0.25922498]
[1737022201017,0.28169014,710.0,708.22,0.25922498]
[1737022201220,0.28169014,710.0,708.23,0.25922498]
[1737022201415,0.28169014,710.0,708.24,0.25922355]
[1737022201711,0.28169014,710.0,708.25,0.25921857]
[1737022203212,0.28169014,710.0,708.24,0.25922355]
[1737022203416,0.28169014,710.0,708.25,0.25922279]
[1737022203812,0.28169014,710.0,708.24,0.25922355]
[1737022204015,0.28169014,710.0,708.25,0.25921973]
[1737022206019,0.28169014,710.0,708.33,1.05215827]
[1737022206213,0.28169014,710.0,708.34,0.2592228]
[1737022206814,0.28169014,710.0,708.35,1.05215827]
[1737022207017,0.28169014,710.0,708.36,0.2592228]
[1737022208219,0.28169014,710.0,708.38,1.05215827]
[1737022208421,0.28169014,710.0,708.39,0.2592228]
[1737022209020,0.28169014,710.0,708.4,0.25922008]
[1737022209214,0.28169014,710.0,708.41,0.25922008]
[1737022209413,0.28169014,710.0,708.42,0.25922008]
[1737022209612,0.28169014,710.0,708.43,0.25922008]
[1737022209813,0.28169014,710.0,708.44,0.25922008]
[1737022210013,0.28169014,710.0,708.45,0.25922008]
[1737022210219,0.28169014,710.0,708.46,0.25922008]
[1737022210618,0.28169014,710.0,708.47,0.25922008]
[1737022210812,0.28169014,710.0,708.4,1.05215827]
[1737022211016,0.28169014,710.0,708.41,0.25922008]
[1737022211519,0.28169014,710.0,708.42,0.25922964]
[1737022211819,0.28169014,710.0,708.43,0.25922964]
[1737022212018,0.28169014,710.0,708.44,0.25922964]
[1737022212213,0.28169014,710.0,708.4,1.05215827]
[1737022212416,0.28169014,710.0,708.41,0.25922734]
[1737022212920,0.28169014,710.0,708.42,1.05215827]
[1737022213120,0.28169014,710.0,708.43,0.25922734]
[1737022213722,0.28169014,710.0,708.43,1.31138561]
[1737022213923,0.28169014,710.0,708.44,0.25922734]
[1737022214322,0.28169014,710.0,708.43,1.05215827]
[1737022214519,0.28169014,710.0,708.44,0.25922763]
[1737022214717,0.28169014,710.0,708.44,1.3113859]
[1737022214921,0.28169014,710.0,708.45,0.25922763]
[1737022215323,0.28169014,710.0,708.44,1.05215827]
[1737022215518,0.28169014,710.0,707.89,1.27239516]
[1737022215519,0.28169014,710.0,708.45,1.05215827]
[1737022216919,1.33564864,710.0,708.46,1.05215827]
[1737022217923,1.0539585,709.98,708.48,1.05215827]
[1737022218225,0.28170601,709.96,708.48,1.05215827]
[1737022218817,1.33566451,709.96,708.5,1.05215827]
[1737022219927,1.0539585,709.95,708.51,1.05215827]
[1737022220626,1.0539585,709.95,708.5,1.05215827]
[1737022221326,0.28171791,709.93,708.5,1.05215827]
[1737022221727,1.0539585,709.88,708.55,1.05215827]
[1737022222122,0.28174569,709.86,708.55,1.05215827]
[1737022222523,0.28174569,709.86,708.57,1.05215827]
[1737022223524,0.28174569,709.86,708.58,1.05215827]
[1737022223525,1.0539585,709.85,708.58,1.05215827]
[1737022224533,1.47235111,709.92,708.58,1.05215827]
[1737022224534,1.3357161,709.83,708.58,1.05215827]
[1737022224732,0.28176157,709.82,708.58,1.05215827]
[1737022225335,1.33572007,709.82,708.6,1.05215827]
[1737022226132,1.33572007,709.82,708.64,1.05215827]
[1737022226133,1.0539585,709.76,708.64,1.05215827]
[1737022226535,0.28178936,709.75,708.64,1.05215827]
[1737022227036,1.33574786,709.75,708.66,1.05215827]
[1737022227636,1.0539585,709.71,708.67,1.05215827]
[1737022227829,0.28180921,709.7,708.67,1.05215827]
[1737022229336,1.0539585,709.67,708.72,1.05215827]
[1737022229530,0.28182509,709.66,708.72,1.05215827]
[1737022230236,0.28182509,709.66,708.28,1.27239516]
[1737022230237,0.28182509,709.66,708.73,1.05215827]
[1737022231040,0.28182509,709.66,708.74,1.05215827]
[1737022232232,0.28182509,709.66,708.63,1.05215827]
[1737022233041,0.28182509,709.66,708.53,1.05215827]
[1737022233933,1.0539585,709.6,708.5,1.05215827]
[1737022234637,1.0539585,709.56,708.5,1.05215827]
[1737022235743,1.0539585,709.46,708.4,1.05215827]
[1737022236541,1.0539585,709.56,708.3,1.05215827]
[1737022237239,1.0539585,709.56,708.3,1.71115827]
[1737022238444,1.0539585,709.58,708.3,0.659]
[1737022239342,0.28182509,709.66,708.3,0.659]
[1737022239343,1.0539585,709.61,708.3,1.318]
[1737022240343,1.0539585,709.64,708.3,1.318]
[1737022242343,0.28182509,709.66,708.3,1.318]
[1737022244940,1.47283404,709.65,708.3,1.318]
[1737022248045,0.28183304,709.64,708.3,1.318]
[1737022248746,0.28183304,709.64,708.31,0.25928066]
[1737022250146,0.28183304,709.64,708.3,1.318]
[1737022268760,0.28183304,709.64,708.31,0.25924554]
[1737022269262,0.28183304,709.64,708.37,1.05215827]
[1737022269458,0.28183304,709.64,708.38,0.25924019]
[1737022270261,0.28183304,709.64,708.45,1.05215827]
[1737022271165,0.28183304,709.64,708.46,1.05215827]
[1737022272267,0.28183304,709.64,708.44,1.05215827]
[1737022273568,0.28183304,709.64,708.42,1.05215827]
[1737022274365,0.28183304,709.64,708.41,1.05215827]
[1737022274968,0.28183304,709.64,708.42,0.25923372]
[1737022275565,0.28183304,709.64,708.41,1.05215827]
[1737022275766,0.28183304,709.64,708.42,0.25923413]
[1737022276969,0.28183304,709.64,708.44,1.05215827]
[1737022277170,0.28183304,709.64,708.45,0.25922085]
[1737022277369,0.28183304,709.64,708.44,1.05215827]
[1737022277771,0.28183304,709.64,708.45,0.25922434]
[1737022279672,0.28183304,709.64,708.44,1.05215827]
[1737022279872,0.28183304,709.64,708.45,1.31138328]
[1737022280070,0.28183304,709.64,708.46,0.25922501]
[1737022280670,0.28183304,709.64,708.48,1.05215827]
[1737022280975,0.28183304,709.64,708.49,0.25922501]
[1737022281572,0.28183304,709.64,708.5,1.05215827]
[1737022282273,0.28183304,709.64,708.5,1.94815827]
[1737022282468,0.28183304,709.64,708.51,0.25922404]
[1737022282666,0.28183304,709.64,708.5,1.94815827]
[1737022282870,0.28183304,709.64,708.51,0.25922387]
[1737022283667,0.28183304,709.64,708.5,0.896]
[1737022289375,0.28183304,709.64,708.51,0.25919232]
[1737022290777,0.28183304,709.64,708.5,0.896]
[1737022298975,0.28183304,709.64,708.5,1.94815827]
[1737022299776,0.28183304,709.64,708.53,1.05215827]
[1737022300682,0.28183304,709.64,708.5,0.896]
[1737022300683,0.28183304,709.64,708.54,1.05215827]
[1737022301480,0.28183304,709.64,708.58,1.05215827]
[1737022302280,0.28183304,709.64,708.6,1.05215827]
[1737022303384,0.28183304,709.64,708.67,1.05215827]
[1737022304382,0.28183304,709.64,708.69,1.05215827]
[1737022305386,0.28183304,709.64,708.68,1.05215827]
[1737022305579,0.28183304,709.64,708.68,2.06515827]
[1737022307587,0.28183304,709.64,708.69,1.05215827]
[1737022308479,0.28183304,709.64,708.7,1.05215827]
[1737022310287,0.28183304,709.64,708.71,1.05215827]
[1737022313886,0.28183304,709.64,708.68,1.013]
[1737022340805,0.28183304,709.64,708.68,1.951]
[1737022353806,1.33579154,709.64,708.68,1.951]
[1737022354910,0.28183304,709.64,708.68,1.951]
[1737022370710,1.33579154,709.64,708.68,1.951]
[1737022371716,1.0539585,709.63,708.68,1.951]
[1737022371917,0.28184098,709.62,708.68,1.951]
[1737022375617,1.0539585,709.38,708.68,1.951]
[1737022375814,0.28194031,709.37,708.68,1.951]
[1737022546259,0.28194031,709.37,708.69,1.05215827]
[1737022547651,0.28194031,709.37,708.69,1.98815827]
[1737022548559,0.28194031,709.37,708.71,1.05215827]
[1737022549458,0.28194031,709.37,708.69,0.936]
[1737022549459,0.28194031,709.37,708.74,1.05215827]
[1737022550360,0.28194031,709.37,708.75,1.05215827]
[1737022554164,0.28194031,709.37,708.77,1.05215827]
[1737022559664,0.28194031,709.37,708.78,1.05215827]
[1737022561865,0.28194031,709.37,702.7,8.39883174]
[1737022561866,0.28194031,709.37,708.71,1.05215827]
[1737022562065,0.28194031,709.37,708.78,1.0]
[1737022615106,0.28194031,709.37,708.78,2.185]
[1737022620012,1.0539585,709.93,708.78,2.185]
[1737022620213,0.28172585,709.91,708.78,2.185]
[1737022623714,1.0539585,709.81,708.78,2.185]
[1737022624314,0.28176951,709.8,708.78,2.185]
[1737022625820,1.33572801,709.8,708.78,2.185]
[1737022627622,0.28176951,709.8,708.78,2.185]
[1737022628725,1.33572801,709.8,708.78,2.185]
[1737022629725,0.28176951,709.8,708.78,2.185]
[1737022637140,1.0539585,709.74,708.78,2.185]
[1737022637336,0.28180127,709.72,708.78,2.185]
[1737022638239,1.0539585,709.66,708.78,2.185]
[1737022638434,0.28183304,709.64,708.78,2.185]
[1737022641437,0.28183304,709.64,708.78,2.17770431]
[1737022664457,1.0539585,709.58,708.78,2.17770431]
[1737022664664,0.28186084,709.57,708.78,2.17770431]
[1737022665263,1.0539585,709.56,708.78,2.17770431]
[1737022666058,0.28186879,709.55,708.78,2.17770431]
[1737022669867,1.0539585,709.44,708.78,2.17770431]
[1737022670167,0.28191646,709.43,708.78,2.17770431]
[1737022670962,1.0539585,709.38,708.78,2.17770431]
[1737022671165,0.28194031,709.37,708.78,2.17770431]
[1737022701089,1.47305224,709.36,708.78,2.17770431]
[1737022701789,0.28194826,709.35,708.78,2.17770431]
[1737022706392,0.28194826,709.35,708.78,0.45026604]
[1737022706593,0.28194826,709.35,707.88,1.05215827]
[1737022706793,0.28194826,709.35,707.84,1.05215827]
[1737022707595,1.0539585,709.24,707.88,1.05215827]
[1737022707993,0.28199994,709.22,707.88,1.05215827]
[1737022708395,0.28199994,709.22,707.87,1.05215827]
[1737022709698,0.28199994,709.22,707.86,1.05215827]
[1737022710695,0.28199994,709.22,707.84,1.014]
[1737022710696,0.28199994,709.22,707.84,2.06615827]
[1737022711393,0.28199994,709.22,707.85,0.25946826]
[1737022711793,0.28199994,709.22,707.85,1.31162653]
[1737022712100,0.28199994,709.22,707.86,0.25946826]
[1737022712500,1.0539585,709.2,707.9,1.05215827]
[1737022712692,0.28201187,709.19,707.91,0.25945497]
[1737022712895,0.28201187,709.19,707.84,1.014]
[1737022713090,0.28201187,709.19,707.85,0.25945601]
[1737022713694,0.28201187,709.19,707.86,0.25945627]
[1737022713897,0.28201187,709.19,707.85,0.25945627]
[1737022714101,0.28201187,709.19,707.86,0.25945627]
[1737022714400,0.28201187,709.19,707.87,0.25945723]
[1737022714600,0.28201187,709.19,707.92,1.04512739]
[1737022715802,0.28201187,709.19,707.9,1.04512739]
[1737022716600,0.28201187,709.19,707.91,1.30458327]
[1737022716804,0.28201187,709.19,707.92,0.25945588]
[1737022717503,0.28201187,709.19,707.93,1.04512739]
[1737022717702,0.28201187,709.19,707.94,0.25945588]
[1737022718506,0.28201187,709.19,707.95,0.25945764]
[1737022719107,0.28201187,709.19,707.94,1.04512739]
[1737022720208,0.28201187,709.19,707.95,0.25943601]
[1737022720412,0.28201187,709.19,707.94,0.25943548]
[1737022720607,0.28201187,709.19,707.95,0.25943548]
[1737022720805,0.28201187,709.19,707.96,0.25943548]
[1737022721006,0.28201187,709.19,707.97,0.25943548]
[1737022721211,0.28201187,709.19,707.98,1.30453409]
[1737022721410,0.28201187,709.19,707.99,0.2594067]
[1737022721905,0.28201187,709.19,708.0,0.25940931]
[1737022722212,0.28201187,709.19,708.01,1.3045367]
[1737022722412,0.28201187,709.19,708.01,1.04512739]
[1737022722614,0.28201187,709.19,708.02,0.25940787]
[1737022722914,0.28201187,709.19,708.01,1.04512739]
[1737022723713,0.28201187,709.19,708.0,1.04512739]
[1737022724114,0.28201187,709.19,708.01,0.25940807]
[1737022724715,0.28201187,709.19,708.02,1.04512739]
[1737022725913,0.28201187,709.19,708.03,0.25940616]
[1737022726514,0.28201187,709.19,708.04,1.04512739]
[1737022726717,0.28201187,709.19,708.05,0.25940726]
[1737022727620,0.28201187,709.19,708.07,1.04512739]
[1737022728617,0.28201187,709.19,708.07,2.26912739]
[1737022729015,0.28201187,709.19,708.08,1.04512739]
[1737022730017,0.28201187,709.19,708.07,2.26912739]
[1737022733222,0.28201187,709.19,708.07,1.224]
[1737022738624,0.28201187,709.19,708.07,2.26912739]
[1737022738818,0.28201187,709.19,708.07,3.49912739]
[1737022739621,0.28201187,709.19,708.08,0.25936447]
[1737022740323,0.28201187,709.19,708.07,1.23]
[1737022741030,0.28201187,709.19,708.08,1.04512739]
[1737022741920,0.28201187,709.19,708.07,1.23]
[1737022741921,0.28201187,709.19,708.09,0.25937311]
[1737022742227,0.28201187,709.19,708.1,0.25937047]
[1737022742425,0.28201187,709.19,708.07,1.23]
[1737022742627,0.28201187,709.19,708.08,0.25937291]
[1737022742828,0.28201187,709.19,708.08,1.3045003]
[1737022743027,0.28201187,709.19,708.09,0.25937291]
[1737022744028,0.28201187,709.19,708.1,0.25937291]
[1737022744227,0.28201187,709.19,708.11,0.25937291]
[1737022744527,0.28201187,709.19,708.12,0.25937291]
[1737022744729,0.28201187,709.19,708.13,0.25937291]
[1737022744929,0.28201187,709.19,708.08,1.3045003]
[1737022745227,0.28201187,709.19,708.09,0.25936523]
[1737022745722,0.28201187,709.19,708.08,1.04512739]
[1737022745928,0.28201187,709.19,708.11,1.04512739]
[1737022746129,0.28201187,709.19,708.12,0.25935853]
[1737022747929,0.28201187,709.19,708.13,0.25935856]
[1737022748129,0.28201187,709.19,708.14,0.25935856]
[1737022748429,0.28201187,709.19,708.15,0.25935856]
[1737022748729,0.28201187,709.19,708.11,1.04512739]
[1737022748929,0.28201187,709.19,708.12,1.30448609]
[1737022749127,0.28201187,709.19,708.13,0.2593587]
[1737022750530,0.28201187,709.19,708.14,0.25935822]
[1737022750724,0.28201187,709.19,708.12,1.04512739]
[1737022750725,0.28201187,709.19,708.15,0.25935822]
[1737022751031,0.28201187,709.19,708.16,0.25935822]
[1737022752330,0.28201187,709.19,708.15,1.213]
[1737022753434,0.28201187,709.19,708.16,0.25935846]
[1737022753837,0.28201187,709.19,708.16,1.36035846]
[1737022754034,0.28201187,709.19,708.17,0.25934891]
[1737022754335,0.28201187,709.19,708.17,1.3044763]
[1737022754533,0.28201187,709.19,708.18,0.25934891]
[1737022754733,0.28201187,709.19,708.17,1.04512739]
[1737022754935,0.28201187,709.19,708.18,0.25934963]
[1737022755135,0.28201187,709.19,708.19,0.25933655]
[1737022756136,0.28201187,709.19,708.23,1.04512739]
[1737022757133,0.28201187,709.19,708.16,1.101]
[1737022757134,0.28201187,709.19,708.21,1.04512739]
[1737022757338,0.28201187,709.19,708.22,0.25933416]
[1737022758135,0.28201187,709.19,708.2,1.04512739]
[1737022758333,0.28201187,709.19,708.21,0.25933451]
[1737022758537,0.28201187,709.19,708.2,1.04512739]
[1737022758737,0.28201187,709.19,708.21,0.2593088]
[1737022759136,0.28201187,709.19,708.21,1.30443619]
[1737022759437,0.28201187,709.19,708.22,0.2593088]
[1737022760437,0.28201187,709.19,708.24,1.04512739]
[1737022760638,0.28201187,709.19,708.25,0.2593088]
[1737022761339,0.28201187,709.19,708.3,1.04512739]
[1737022761539,0.28201187,709.19,708.31,0.25928764]
[1737022762133,0.28201187,709.19,708.32,0.25928611]
[1737022762337,0.28201187,709.19,708.33,0.25928611]
[1737022762641,0.28201187,709.19,708.16,1.101]
[1737022762642,0.28201187,709.19,708.34,0.25928611]
[1737022762837,0.28201187,709.19,708.35,0.25928611]
[1737022763037,0.28201187,709.19,708.36,0.25928611]
[1737022763238,0.28201187,709.19,708.28,1.04512739]
[1737022763438,0.28201187,709.19,708.29,0.25928758]
[1737022763635,0.28201187,709.19,708.3,0.25928758]
[1737022763835,0.28201187,709.19,708.31,0.25928758]
[1737022764041,0.28201187,709.19,708.27,1.04512739]
[1737022764939,0.28201187,709.19,708.25,1.04512739]
[1737022765139,0.28201187,709.19,708.26,0.25928366]
[1737022765441,0.28201187,709.19,708.25,1.04512739]
[1737022765838,0.28201187,709.19,708.26,0.25927937]
[1737022766036,0.28201187,709.19,708.17,1.04512739]
[1737022766341,0.28201187,709.19,708.18,0.25927895]
[1737022766739,0.28201187,709.19,708.19,0.25928069]
[1737022766941,0.28201187,709.19,708.2,0.25928069]
[1737022767137,0.28201187,709.19,708.21,0.25928069]
[1737022767336,0.28201187,709.19,708.22,0.25928069]
[1737022767538,0.28201187,709.19,708.23,0.25928069]
[1737022767740,0.28201187,709.19,708.24,0.25928069]
[1737022767942,0.28201187,709.19,708.25,0.25928069]
[1737022768142,0.28201187,709.19,708.26,0.25928069]
[1737022768338,0.28201187,709.19,708.27,0.25928069]
[1737022768541,0.28201187,709.19,708.25,0.856]
[1737022768738,0.28201187,709.19,708.26,0.25927772]
[1737022769545,0.28201187,709.19,708.27,0.25927553]
[1737022769739,0.28201187,709.19,708.28,0.25927553]
[1737022769942,0.28201187,709.19,708.29,0.25927553]
[1737022770245,0.28201187,709.19,708.25,0.856]
[1737022770447,0.28201187,709.19,708.26,0.25927728]
[1737022770743,0.28201187,709.19,708.25,0.856]
[1737022770945,0.28201187,709.19,708.26,0.25927273]
[1737022771139,1.0560312,709.98,708.26,0.25927273]
[1737022771339,0.28170601,709.96,708.26,0.25927273]
[1737022772149,0.28170601,709.96,708.25,0.856]
[1737022772348,0.28170601,709.96,708.26,0.25926005]
[1737022774642,0.28170601,709.96,708.26,0.28238217]
[1737022784652,0.28170601,709.96,708.27,0.2591962]
[1737022784855,0.28170601,709.96,708.28,0.2823742]
[1737022785054,0.28170601,709.96,708.29,0.2591962]
[1737022785352,0.28170601,709.96,708.29,0.54156641]
[1737022785556,0.28170601,709.96,708.3,0.2591962]
[1737022786046,0.28170601,709.96,708.31,0.25919624]
[1737022786249,0.28170601,709.96,708.32,0.25919624]
[1737022786450,0.28170601,709.96,708.33,0.25919624]
[1737022786647,0.28170601,709.96,708.34,0.25919624]
[1737022788852,0.28170601,709.96,708.35,0.25919544]
[1737022789053,0.28170601,709.96,708.36,0.25919544]
[1737022789253,0.28170601,709.96,708.37,0.25919544]
[1737022789553,0.28170601,709.96,708.38,0.25919544]
[1737022789751,0.28170601,709.96,708.39,0.25919544]
[1737022789952,0.28170601,709.96,708.4,0.25919544]
[1737022790153,0.28170601,709.96,708.41,0.25919544]
[1737022790349,0.28170601,709.96,708.42,0.25919544]
[1737022790554,0.28170601,709.96,708.43,0.25919544]
[1737022790753,0.28170601,709.96,708.33,0.943]
[1737022790954,0.28170601,709.96,708.34,0.25919519]
[1737022791556,0.28170601,709.96,708.35,0.25919561]
[1737022791757,0.28170601,709.96,708.36,0.25919561]
[1737022791959,0.28170601,709.96,708.37,0.25919561]
[1737022792251,0.28170601,709.96,708.38,0.25919561]
[1737022792460,0.28170601,709.96,708.39,0.25919561]
[1737022792657,0.28170601,709.96,708.4,0.25919561]
[1737022792858,0.28170601,709.96,708.41,0.25919561]
[1737022793058,0.28170601,709.96,708.42,0.25919561]
[1737022793259,0.28170601,709.96,708.43,0.25919561]
[1737022793459,0.28170601,709.96,708.44,0.25919561]
[1737022793761,0.28170601,709.96,708.36,1.04512739]
[1737022793954,0.28170601,709.96,708.37,0.25919383]
[1737022794154,0.28170601,709.96,708.38,1.04512739]
[1737022794355,0.28170601,709.96,708.39,0.25919383]
[1737022794755,0.28170601,709.96,708.38,2.12212739]
[1737022794961,0.28170601,709.96,708.39,0.25919692]
[1737022795462,0.28170601,709.96,708.41,1.04512739]
[1737022795660,0.28170601,709.96,708.42,0.25919692]
[1737022796762,0.28170601,709.96,708.43,0.25919692]
[1737022796963,0.28170601,709.96,708.44,0.2591984]
[1737022797263,0.28170601,709.96,708.45,0.2591984]
[1737022797464,0.28170601,709.96,708.46,0.2591984]
[1737022798364,0.28170601,709.96,708.46,1.30432579]
[1737022798565,0.28170601,709.96,708.47,0.2591984]
[1737022799565,0.28170601,709.96,708.48,0.25919489]
[1737022799759,0.28170601,709.96,708.49,0.25919489]
[1737022800868,0.28170601,709.96,708.49,1.30432228]
[1737022801069,0.28170601,709.96,708.5,0.25919489]
[1737022801468,0.28170601,709.96,708.51,0.25919292]
[1737022801667,0.28170601,709.96,708.52,0.25919292]
[1737022801863,1.47225248,709.95,708.53,0.25919292]
[1737022802070,0.28171791,709.93,708.54,0.25919292]
[1737022802272,0.28171791,709.93,708.55,0.25919292]
[1737022802472,0.28171791,709.93,708.56,0.25919292]
[1737022802770,0.28171791,709.93,708.57,0.25919487]
[1737022803072,0.28171791,709.93,708.51,1.04512739]
[1737022803271,0.28171791,709.93,708.56,1.04512739]
[1737022803470,0.28171791,709.93,708.57,0.25918651]
[1737022803872,0.28171791,709.93,708.56,1.04512739]
[1737022804171,0.28171791,709.93,708.59,1.04512739]
[1737022804768,0.28171791,709.93,708.6,0.25919029]
[1737022805071,0.28171791,709.93,708.59,1.04512739]
[1737022805272,0.28171791,709.93,708.6,0.25919054]
[1737022805572,0.28171791,709.93,708.59,1.04512739]
[1737022805774,0.28171791,709.93,708.6,0.25919303]
[1737022806174,0.28171791,709.93,708.59,1.04512739]
[1737022806175,0.28171791,709.93,708.61,1.04512739]
[1737022807372,1.0560312,709.88,708.66,1.04512739]
[1737022807567,0.28174172,709.87,708.66,1.04512739]
[1737022808175,1.0560312,709.86,708.68,1.04512739]
[1737022808472,0.28174966,709.85,708.68,1.04512739]
[1737022809071,0.28174966,709.85,708.74,1.04512739]
[1737022809072,1.0560312,709.8,708.74,1.04512739]
[1737022809671,0.28177348,709.79,708.74,1.04512739]
[1737022809873,0.28177348,709.79,708.56,1.04512739]
[1737022809874,0.28177348,709.79,708.75,1.04512739]
[1737022810875,1.0560312,709.74,708.8,1.04512739]
[1737022812474,1.0560312,709.75,708.79,1.04512739]
[1737022812677,1.33782056,709.75,708.79,1.04512739]
[1737022813381,1.0560312,709.74,708.79,1.04512739]
[1737022814472,1.0560312,709.74,708.8,1.04512739]
[1737022816678,1.0560312,709.74,708.79,1.04512739]
[1737022817773,1.0560312,709.73,708.79,1.04512739]
[1737022818178,1.0560312,709.73,708.79,2.01412739]
[1737022819779,1.0560312,709.73,708.79,2.93612739]
[1737022821874,0.28178936,709.75,708.79,2.93612739]
[1737022821875,0.28178936,709.75,708.79,1.891]
[1737022830888,1.0560312,709.69,708.79,1.891]
[1737022831385,0.28181715,709.68,708.79,1.891]
[1737022832087,1.33784835,709.68,708.79,1.891]
[1737022832978,1.0560312,709.67,708.79,1.891]
[1737022833780,0.28181715,709.68,708.79,1.891]
[1737022925852,0.28181715,709.68,708.8,0.25911701]
[1737022926453,0.28181715,709.68,701.92,0.79040869]
[1737022926454,0.28181715,709.68,708.76,1.04512739]
[1737022926950,1.0560312,710.76,708.58,1.04512739]
[1737022927155,0.28142853,710.66,708.59,0.28225066]
[1737022927855,0.28142853,710.66,708.59,1.32737805]
[1737022928655,1.47136027,710.65,708.59,1.32737805]
[1737022928955,1.47136027,710.65,708.6,0.25906324]
[1737022929157,1.47136027,710.65,708.64,1.04512739]
[1737022929356,1.47136027,710.65,708.65,0.25906414]
[1737022929855,1.47136027,710.65,708.69,1.04512739]
[1737022930252,0.28144041,710.63,708.7,0.28220685]
[1737022933356,1.33747161,710.63,708.7,1.32733424]
[1737022934155,1.0560312,710.56,708.7,1.70220685]
[1737022934361,1.0560312,710.56,708.71,0.2590913]
[1737022935154,1.0560312,710.35,708.81,1.04512739]
[1737022935353,1.0560312,710.35,708.82,0.2590913]
[1737022935659,1.0560312,710.35,708.81,1.04512739]
[1737022936357,1.0560312,710.36,708.82,1.04512739]
[1737022937155,0.28144041,710.63,708.7,1.70220685]
[1737022939862,0.28144041,710.63,708.71,0.25906475]
[1737022940257,0.28144041,710.63,708.7,1.70220685]
[1737022940456,0.28144041,710.63,708.71,0.2590617]
[1737022941061,0.28144041,710.63,708.8,1.04512739]
[1737022941062,1.0560312,710.58,708.8,1.04512739]
[1737022941657,1.47133953,710.57,708.81,1.04512739]
[1737022943263,0.28147209,710.55,708.81,1.04512739]
[1737022943866,0.28147209,710.55,708.82,1.04512739]
[1737022944669,0.28147209,710.55,708.81,1.04512739]
[1737022945670,0.28147209,710.55,708.82,1.04512739]
[1737022946670,0.28147209,710.55,708.7,1.70220685]
[1737022946671,0.28147209,710.55,708.81,1.04512739]
[1737022946871,0.28147209,710.55,708.82,0.25905886]
[1737022947572,1.0560312,710.54,708.84,1.04512739]
[1737022947966,0.28148398,710.52,708.84,1.04512739]
[1737022948171,0.28148398,710.52,708.85,0.25905905]
[1737022948365,0.28148398,710.52,708.85,1.30418644]
[1737022948673,0.28148398,710.52,708.86,0.25905922]
[1737022949466,0.28148398,710.52,708.86,1.08005922]
[1737022949672,1.0560312,710.48,708.88,1.04512739]
[1737022949870,0.28150775,710.46,708.89,0.25905922]
[1737022950669,1.0560312,710.43,708.93,1.04512739]
[1737022950870,0.28152756,710.41,708.93,1.04512739]
[1737022951267,0.28152756,710.41,708.94,0.25905631]
[1737022951673,0.28152756,710.41,708.94,1.61405631]
[1737022951974,1.47137064,710.4,708.95,0.25905631]
[1737022952174,0.28153945,710.38,708.95,0.25905631]
[1737022952575,0.28153945,710.38,708.95,1.3041837]
[1737022952773,0.28153945,710.38,708.96,0.25905631]
[1737022953071,0.28153945,710.38,708.95,1.04512739]
[1737022953870,1.0560312,710.37,708.95,1.04512739]
[1737022954272,1.0560312,710.37,708.96,0.25906149]
[1737022954474,0.28155134,710.35,708.96,0.25906149]
[1737022954774,1.33758254,710.35,708.97,1.04512739]
[1737022955570,1.33758254,710.35,708.98,1.04512739]
[1737022955571,1.0560312,710.34,708.98,1.04512739]
[1737022955977,0.28156323,710.32,708.98,1.04512739]
[1737022956775,0.28156323,710.32,708.94,1.355]
[1737022962280,1.47143285,710.31,708.94,1.355]